bitfinex-derivatives/quotes_ETHF0:USTF0_20251103
["timestamp","ask_amount","ask_price","bid_price","bid_amount"]
[1762176110473,0.71661,3698.1,3698.0,9.6718]
[1762176111872,0.48681,3698.1,3698.0,9.9001]
[1762176113479,0.71661,3698.1,3698.0,9.6718]
[1762176113775,0.48681,3698.1,3698.0,9.9001]
[1762176116077,0.71661,3698.1,3698.0,9.6718]
[1762176116277,3.92441,3698.1,3698.0,9.6698]
[1762176119572,3.92441,3698.1,3698.0,0.1348]
[1762176120877,3.92441,3698.1,3698.0,0.3677]
[1762176121675,0.71661,3698.1,3698.0,0.3677]
[1762176122374,0.48681,3698.1,3698.0,0.3677]
[1762176126574,1.21681,3698.8,3698.0,0.3677]
[1762176126575,3.2078,3699.0,3698.9,0.2329]
[1762176126780,3.94061866,3699.0,3698.9,0.2329]
[1762176126977,3.69449,3699.0,3698.9,0.2329]
[1762176128478,0.48669,3699.0,3698.9,0.2329]
[1762176129184,1.21619,3700.7,3699.8,0.2329]
[1762176129375,0.48653,3700.2,3700.1,0.2329]
[1762176130084,0.2318,3700.1,3700.0,0.1326]
[1762176130474,0.2318,3700.1,3700.0,0.00276711]
[1762176130675,1.0918814,3700.1,3700.0,0.00276711]
[1762176134579,0.2318,3699.4,3699.3,3.2078]
[1762176134779,0.2318,3698.9,3698.8,3.2078]
[1762176135183,3.2078,3699.4,3698.8,3.4407]
[1762176135476,0.85924971,3699.3,3698.8,3.4407]
[1762176135785,3.2078,3699.4,3698.8,3.44374615]
[1762176135984,3.2078,3699.4,3698.8,0.23594615]
[1762176135985,0.85922142,3699.3,3698.8,0.23594615]
[1762176136290,0.2318,3698.9,3698.8,0.23594615]
[1762176136480,0.2318,3698.9,3698.8,0.00304615]
[1762176137088,0.7185,3698.9,3698.8,0.00304615]
[1762176139588,0.7185,3698.9,3698.8,0.23594615]
[1762176139985,0.4867,3698.9,3698.8,0.23594615]
[1762176140184,0.4867,3698.9,3698.8,3.44374615]
[1762176151601,3.2078,3699.8,3699.6,0.2273]
[1762176152001,0.2371,3699.7,3699.6,0.2273]
[1762176152202,0.2371,3699.7,3699.0,0.131]
[1762176153394,0.2371,3699.7,3699.0,0.61769]
[1762176154303,0.2371,3699.7,3699.6,0.2273]
[1762176155506,0.137,3700.0,3699.6,3.4351]
[1762176156105,0.2371,3699.7,3699.6,3.4351]
[1762176157804,0.137,3700.0,3699.6,3.4351]
[1762176158001,0.86648213,3699.9,3699.8,0.2273]
[1762176159204,0.24964785,3699.9,3699.8,0.2273]
[1762176159698,0.2371,3699.9,3699.8,0.2273]
[1762176160300,0.48681984,3699.9,3699.8,0.2273]
[1762176160505,0.97338984,3699.9,3699.8,0.2273]
[1762176161300,0.72367,3699.9,3699.8,0.2273]
[1762176166410,0.48657,3699.9,3699.8,0.2273]
[1762176167705,0.72367,3699.9,3699.8,0.2273]
[1762176167899,0.72367,3699.9,3699.6,3.4351]
[1762176167900,0.4866,3699.7,3699.6,3.4351]
[1762176169905,1.21653,3699.6,3699.0,3.2078]
[1762176170104,0.48667,3699.1,3699.0,3.5661]
[1762176170513,1.2165,3699.7,3699.0,3.82548]
[1762176170701,0.4866,3699.7,3699.6,3.4351]
[1762176172913,0.7237,3699.7,3699.6,3.4351]
[1762176173509,0.7237,3699.7,3699.6,3.2078]
[1762176173808,1.21662,3699.4,3699.2,3.2078]
[1762176174014,0.72375,3699.3,3699.2,3.4351]
[1762176176907,0.48665,3699.3,3699.2,3.4351]
[1762176177415,1.21653,3699.6,3699.5,0.3708]
[1762176177416,0.48661,3699.6,3699.5,0.3708]
[1762176183515,0.00253535,3700.2,3700.1,0.72534]
[1762176183815,0.48644,3700.9,3700.8,0.2388]
[1762176184013,1.35408274,3700.9,3700.8,3.4466]
[1762176184211,0.96834605,3700.9,3700.8,3.4466]
[1762176184610,0.71839,3700.5,3700.4,3.2078]
[1762176184816,0.85109,3700.5,3700.4,3.2078]
[1762176185214,0.85109,3700.5,3700.4,3.4466]
[1762176185516,0.48654,3700.1,3700.0,3.5786]
[1762176189719,0.71844,3700.1,3700.0,3.4466]
[1762176192221,0.71844,3700.1,3700.0,3.2078]
[1762176192713,0.71844,3700.1,3699.7,7.7808]
[1762176192714,0.2319,3699.8,3699.7,7.7808]
[1762176194326,0.2319,3699.8,3699.7,8.0196]
[1762176195319,0.1327,3700.0,3699.7,8.0196]
[1762176195930,0.1327,3700.5,3700.0,0.132]
[1762176196124,3.2078,3700.6,3700.0,0.132]
[1762176196125,3.2078,3700.6,3700.5,0.2388]
[1762176196324,4.07174428,3700.6,3700.5,0.2388]
[1762176196525,4.30364428,3700.6,3700.5,0.2388]
[1762176197131,0.1327,3700.5,3700.0,0.132]
[1762176197920,0.1327,3700.0,3699.7,7.7808]
[1762176198330,0.2319,3699.8,3699.7,7.7808]
[1762176198627,0.2319,3699.8,3699.7,8.0196]
[1762176198831,0.2319,3699.8,3699.7,7.7808]
[1762176200121,0.2319,3699.8,3699.7,8.0196]
[1762176200328,3.2078,3700.6,3700.5,0.2388]
[1762176200530,3.2078,3701.4,3701.0,0.0844]
[1762176200831,1.43821246,3702.2,3701.7,0.2388]
[1762176200832,3.69412,3701.8,3701.7,0.2388]
[1762176201432,3.6968595,3701.8,3701.7,0.24139091]
[1762176201634,3.9287595,3701.8,3701.7,0.00259091]
[1762176202834,3.9287595,3701.8,3701.7,0.24139091]
[1762176210740,3.9287595,3701.8,3701.7,0.00259091]
[1762176219644,0.84876,3701.5,3701.4,8.661]
[1762176219847,1.216,3701.2,3700.8,9.494]
[1762176220041,0.48644,3700.9,3700.8,9.7238]
[1762176220546,0.48644,3700.9,3700.8,9.72698853]
[1762176221246,0.71504,3700.9,3700.8,9.72698853]
[1762176222545,0.48644,3700.9,3700.8,9.72698853]
[1762176224945,0.1338,3701.0,3700.5,3.10734177]
[1762176225150,0.1338,3700.5,3700.1,3.4376]
[1762176225348,3.2078,3700.9,3700.4,0.2298]
[1762176226049,3.2078,3700.9,3700.5,0.1442]
[1762176227148,0.1338,3701.0,3700.5,0.1442]
[1762176227449,0.1338,3701.0,3700.5,3.352]
[1762176230854,0.1338,3701.0,3700.5,0.1442]
[1762176232558,0.48648,3700.6,3700.5,0.374]
[1762176233350,0.48648,3700.6,3700.5,3.5818]
[1762176233753,0.48648,3700.6,3700.5,4.06829]
[1762176234055,0.48648,3700.6,3700.5,3.5818]
[1762176234362,0.48635,3701.6,3701.2,0.48639]
[1762176234656,0.12651537,3701.3,3701.2,7.24079]
[1762176234856,0.12651537,3701.3,3701.2,13.20319]
[1762176235057,0.12651537,3701.3,3701.2,19.95759]
[1762176235558,1.21569,3702.2,3701.4,0.48637]
[1762176235759,0.0549,3701.3,3701.2,10.20578718]
[1762176238456,3.2078,3702.0,3701.2,10.20578718]
[1762176240060,3.2078,3702.0,3701.3,0.48638]
[1762176240258,3.2078,3702.0,3701.2,9.71939718]
[1762176240461,3.2078,3702.0,3701.3,0.48638]
[1762176240663,3.2078,3702.0,3701.4,9.243]
[1762176240856,3.2078,3702.0,3701.4,9.72937]
[1762176241457,1.34983931,3701.9,3701.4,9.72937]
[1762176241657,1.34983931,3701.6,3701.4,9.243]
[1762176241957,0.48636,3701.5,3701.4,9.243]
[1762176242162,1.83619931,3701.5,3701.4,9.243]
[1762176252768,0.48636,3701.5,3701.4,9.243]
[1762176253768,1.83619931,3701.5,3701.4,9.243]
[1762176254868,0.48645,3700.8,3700.7,3.2078]
[1762176255071,0.48645,3700.8,3700.7,12.6998]
[1762176255273,1.83628931,3700.8,3700.7,12.6998]
[1762176255571,1.83628931,3700.8,3700.7,9.492]
[1762176260971,0.48645,3700.8,3700.7,9.492]
[1762176261171,0.48645,3700.8,3700.7,12.6998]
[1762176261576,0.48645,3700.8,3700.7,13.18627]
[1762176262674,0.48646,3700.8,3700.7,13.18625]
[1762176263378,0.48646,3700.8,3700.7,12.6998]
[1762176266381,0.48646,3700.8,3700.7,13.18627]
[1762176267284,0.48646,3700.8,3700.7,12.6998]
[1762176271286,0.48646,3700.8,3700.7,13.18627]
[1762176272190,0.48646,3700.8,3700.7,12.6998]
[1762176272680,0.48646,3700.8,3700.7,13.18627]
[1762176274492,0.48646,3700.8,3700.7,13.41827]
[1762176274795,0.48646,3700.8,3700.7,9.724]
[1762176275095,0.48645,3700.9,3700.8,0.48646]
[1762176275293,0.48645,3700.9,3700.8,0.71846]
[1762176275592,1.83628931,3700.9,3700.8,0.71846]
[1762176275892,1.83628931,3700.9,3700.8,0.232]
[1762176277094,1.83628931,3700.9,3700.8,0.71846]
[1762176277596,0.51713,3701.0,3700.9,0.48643]
[1762176277792,0.51713,3701.0,3700.9,9.97843]
[1762176277985,1.86696931,3701.0,3700.9,9.97843]
[1762176278188,0.51713,3701.0,3700.9,9.97843]
[1762176279891,0.51713,3701.0,3700.9,9.492]
[1762176280095,0.51713,3701.0,3700.9,9.97844]
[1762176281997,0.51713,3701.0,3700.9,9.492]
[1762176282893,0.51713,3701.0,3700.9,9.97844]
[1762176283295,0.51713,3701.0,3700.9,9.492]
[1762176283597,0.51713,3701.0,3700.9,9.97844]
[1762176285002,0.51713,3701.0,3700.9,12.6998]
[1762176285803,0.51713,3701.0,3700.9,13.18624]
[1762176286202,0.51713,3701.0,3700.9,9.97844]
[1762176286400,0.51713,3701.0,3700.9,12.6998]
[1762176286600,0.51713,3701.0,3700.9,13.18624]
[1762176288203,0.0027395,3701.8,3701.5,0.48635]
[1762176288406,0.48634,3701.7,3701.6,9.49]
[1762176288800,1.83617931,3701.7,3701.6,9.49]
[1762176292003,0.48642,3701.1,3701.0,0.1407]
[1762176292312,0.48642,3701.1,3701.0,9.6297]
[1762176293309,1.83625931,3701.1,3701.0,9.6297]
[1762176294911,1.83625931,3701.1,3701.0,9.8617]
[1762176295314,0.48642,3701.1,3701.0,9.8617]
[1762176296909,0.48642,3701.1,3701.0,0.3727]
[1762176297208,0.48642,3701.1,3701.0,9.8607]
[1762176298805,1.83625931,3701.1,3701.0,9.8607]
[1762176300616,1.83625931,3701.1,3701.0,10.34713]
[1762176300915,1.83625931,3701.1,3701.0,9.8607]
[1762176301106,3.2105395,3701.8,3701.0,9.8607]
[1762176301306,2.43123,3702.5,3701.0,9.8607]
[1762176301307,3.2078,3702.3,3701.5,0.1356]
[1762176301511,0.48628,3702.1,3702.0,0.84189]
[1762176301714,0.48628,3702.1,3702.0,10.32889]
[1762176302213,0.48628,3702.1,3702.0,9.8426]
[1762176302410,0.48821771,3702.1,3702.0,9.8426]
[1762176302611,0.72981771,3702.1,3702.0,9.487]
[1762176303415,0.72981771,3702.1,3702.0,9.707]
[1762176303610,0.72981771,3702.1,3702.0,9.487]
[1762176305915,0.72981771,3702.1,3702.0,9.707]
[1762176306220,0.72981771,3702.1,3702.0,9.487]
[1762176307712,0.97810914,3702.1,3702.0,9.487]
[1762176307913,0.72981771,3702.1,3702.0,9.487]
[1762176308313,0.72981771,3702.1,3702.0,9.707]
[1762176308522,0.48821771,3702.1,3702.0,9.707]
[1762176308821,0.48821771,3702.1,3702.0,9.8426]
[1762176312234,0.48821771,3702.1,3701.5,0.1356]
[1762176312235,0.48635,3701.6,3701.5,0.3556]
[1762176312430,0.72795,3701.6,3701.5,0.22]
[1762176312637,0.48639,3701.3,3701.2,3.4278]
[1762176312831,0.48639,3701.3,3701.2,7.774]
[1762176313229,0.48646,3700.8,3700.7,3.4278]
[1762176313432,0.48646,3700.8,3700.7,12.9118]
[1762176315536,0.72806,3700.8,3700.7,9.484]
[1762176316538,0.48646,3700.8,3700.7,9.704]
[1762176324945,0.72808,3700.6,3700.5,0.1161]
[1762176325247,25.0,6144.0,3700.5,0.4805]
[1762176325547,14.52180609,3710.2,3708.2,12.13698]
[1762176325746,0.21948876,3710.2,3710.1,0.48523]
[1762176325939,0.1433,3711.0,3710.7,0.48514]
[1762176326140,0.1433,3711.6,3710.8,0.97060872]
[1762176326342,0.1433,3712.2,3711.4,7.73262127]
[1762176326343,1.9338,3711.5,3711.4,7.73262127]
[1762176326644,9.7086844,3711.5,3711.4,6.11629402]
[1762176326951,9.7086844,3710.8,3709.8,0.48527]
[1762176327244,7.6148844,3711.3,3710.1,0.48523]
[1762176327446,7.6148844,3711.2,3710.2,1.71600606]
[1762176327646,7.6148844,3711.1,3710.3,0.74549485]
[1762176327845,7.6148844,3711.2,3710.6,3.2078]
[1762176328038,11.16769133,3711.1,3710.7,0.74549485]
[1762176328241,11.16769133,3711.1,3710.8,3.95329485]
[1762176328242,0.00269133,3711.1,3710.8,3.95329485]
[1762176328443,0.00269133,3711.1,3710.9,0.72046421]
[1762176328646,11.16,3711.0,3710.7,3.2078]
[1762176328848,7.6148844,3710.8,3710.7,3.2078]
[1762176329042,0.00269133,3711.1,3710.7,3.2078]
[1762176329351,7.6148844,3710.8,3710.7,5.17706277]
[1762176330043,0.00269133,3711.1,3711.0,1.967]
[1762176330351,11.153,3711.4,3711.3,0.48507]
[1762176330550,11.153,3711.4,3711.3,3.69287]
[1762176330850,19.89600063,3711.4,3710.7,3.21006277]
[1762176331040,19.89600063,3711.4,3710.0,10.37147658]
[1762176331041,2.0938,3710.1,3710.0,9.66577658]
[1762176331241,15.56082163,3710.1,3710.0,9.66577658]
[1762176331449,4.40482163,3710.1,3710.0,10.15102658]
[1762176331747,1.2228,3710.7,3710.0,9.66577658]
[1762176331954,11.161,3710.3,3710.1,0.48524]
[1762176332252,4.40482163,3710.2,3710.1,5.18603898]
[1762176332647,1.52206705,3711.3,3710.3,0.4852]
[1762176332854,11.149,3710.8,3710.5,3.2078]
[1762176333150,3.2078,3711.7,3710.7,0.48516]
[1762176333345,4.40482163,3711.2,3710.9,3.69292]
[1762176333545,4.40482163,3711.3,3711.1,3.77006668]
[1762176333854,0.00285537,3711.3,3711.1,3.77006668]
[1762176334042,4.40482163,3711.2,3711.1,3.28497668]
[1762176334242,20.83642163,3711.2,3711.1,3.28497668]
[1762176334553,2.0938,3710.9,3710.8,2.33939294]
[1762176334754,13.2208,3710.9,3710.8,2.33939294]
[1762176335052,23.28651383,3710.9,3710.0,3.21049541]
[1762176335248,3.28851383,3710.7,3710.0,3.21049541]
[1762176335457,1.2228,3710.7,3710.0,3.21049541]
[1762176335855,2.06571383,3710.4,3710.0,3.21049541]
[1762176336050,2.06571383,3710.3,3710.0,3.21049541]
[1762176336449,2.06571383,3710.1,3710.0,5.17749541]
[1762176336650,1.00153198,3710.1,3710.0,5.17749541]
[1762176336849,1.2228,3710.7,3710.0,5.17749541]
[1762176337246,3.3166,3710.7,3710.6,1.40036842]
[1762176338158,3.3166,3710.7,3710.5,1.40036842]
[1762176338352,2.0938,3710.3,3710.2,1.31146136]
[1762176338559,2.0938,3709.2,3709.1,3.2078]
[1762176338850,2.0938,3708.7,3708.6,1.86827247]
[1762176339059,5.3016,3708.7,3708.6,2.80801682]
[1762176339250,12.0424,3708.7,3708.6,0.93974435]
[1762176339556,1.2228,3708.6,3707.6,1.86827247]
[1762176339752,5.3016,3707.7,3707.5,1.86827247]
[1762176340158,5.3016,3707.7,3706.9,1.86827247]
[1762176340459,5.3016,3707.7,3707.0,0.40287283]
[1762176340653,5.3016,3707.7,3707.1,0.40287283]
[1762176340857,5.3016,3707.7,3707.2,0.40287283]
[1762176341057,5.3016,3707.7,3707.3,0.40287283]
[1762176341355,5.3016,3707.7,3707.0,1.8714985]
[1762176341356,5.3016,3707.7,3707.4,0.40287283]
[1762176341555,5.3016,3707.7,3707.0,5.0792985]
[1762176341556,5.3016,3707.7,3707.5,0.40287283]
[1762176341755,5.3016,3707.7,3707.6,0.40287283]
[1762176342559,2.86868697,3707.7,3707.6,2.36987283]
[1762176343555,16.02348697,3707.7,3707.6,0.40287283]
[1762176343858,16.02348697,3707.7,3707.0,0.00322603]
[1762176343859,2.0938,3707.1,3707.0,0.00322603]
[1762176344060,5.3016,3707.1,3707.0,0.00322603]
[1762176345458,12.0456,3707.1,3706.1,3.2078]
[1762176345659,12.0456,3707.1,3705.3,0.70045237]
[1762176345660,2.0938,3706.2,3705.1,5.68394237]
[1762176345957,11.029,3706.1,3705.3,0.48586]
[1762176346155,11.029,3706.1,3705.1,4.4976]
[1762176346156,3.2078,3706.9,3706.3,1.967]
[1762176346355,5.682,3706.8,3705.8,1.2898]
[1762176346665,5.68496592,3706.8,3705.8,0.00314694]
[1762176347160,3.2078,3706.3,3705.8,0.00314694]
[1762176347458,2.0938,3705.9,3705.8,0.00314694]
[1762176348056,5.3016,3705.9,3705.8,0.00314694]
[1762176348669,2.0938,3705.9,3705.8,0.00314694]
[1762176348959,9.2278,3705.9,3705.8,0.00314694]
[1762176349353,13.1348,3705.9,3705.8,0.00314694]
[1762176349861,2.0938,3705.9,3705.8,0.00314694]
[1762176350060,9.2208,3705.9,3705.8,0.00314694]
[1762176351158,13.1188,3705.9,3705.8,0.00314694]
[1762176351558,2.0938,3705.9,3705.8,0.00314694]
[1762176351958,3.2078,3706.3,3705.8,0.00314694]
[1762176352659,10.992,3706.2,3705.8,0.00314694]
[1762176352865,5.3016,3705.9,3705.8,0.00314694]
[1762176353859,47.65885236,3713.6,3707.7,3.2078]
[1762176354066,3.2078,3715.4,3714.7,12.11609]
[1762176354259,3.782,3717.2,3715.2,0.48456]
[1762176354463,1.2228,3717.6,3716.5,0.48439]
[1762176354657,25.54489254,3717.4,3716.6,1.30715393]
[1762176354856,25.5474542,3717.4,3716.7,1.30715393]
[1762176355065,25.54489254,3717.2,3714.6,12.11602]
[1762176355361,40.92949535,3717.3,3714.5,0.48466]
[1762176355560,3.2078,3716.1,3715.5,3.2078]
[1762176355761,11.995,3716.0,3715.5,3.2078]
[1762176355957,2.40622299,3715.6,3715.5,0.00301242]
[1762176356259,23.29968829,3715.6,3715.5,0.00301242]
[1762176356458,17.8126145,3715.6,3715.5,0.00301242]
[1762176356860,3.2078,3715.6,3713.7,3.69255]
[1762176357062,21.0204145,3714.6,3714.2,0.48469]
[1762176357262,3.2078,3715.0,3714.3,0.48467]
[1762176357458,3.2078,3715.0,3714.0,3.31255977]
[1762176357459,3.2078,3715.0,3714.6,0.48465]
[1762176357664,3.2078,3715.0,3713.9,12.11867]
[1762176357665,10.30213451,3714.9,3714.7,0.48464]
[1762176357863,3.2078,3714.8,3714.7,0.0034238]
[1762176358073,17.8126145,3714.1,3712.5,13.21488]
[1762176358368,3.2078,3713.1,3713.0,0.48486]
[1762176358567,3.2078,3713.8,3713.4,0.48481]
[1762176358762,24.31736924,3713.8,3713.4,2.84937785]
[1762176358963,17.8126145,3713.5,3713.4,0.00235702]
[1762176359356,21.10956924,3713.5,3713.4,0.00235702]
[1762176359758,21.10956924,3713.5,3712.8,2.36456785]
[1762176359759,17.8126145,3712.2,3711.8,0.48502]
[1762176359971,3.2078,3711.9,3711.5,0.48505]
[1762176360168,11.961,3711.8,3710.4,12.12979]
[1762176360461,3.2078,3711.9,3711.8,0.48502]
[1762176360663,15.16570737,3711.9,3711.8,0.48839374]
[1762176360864,32.97832187,3711.9,3711.8,0.48839374]
[1762176361063,21.02332187,3711.9,3711.8,0.48839374]
[1762176361466,21.02332187,3711.9,3711.8,0.00337374]
[1762176363062,1.2659,3711.0,3710.8,0.94493251]
[1762176363260,1.2659,3711.0,3709.3,1.89090137]
[1762176363261,15.1018,3710.9,3709.7,1.41817603]
[1762176363571,18.42200453,3710.5,3710.1,0.48523]
[1762176363770,3.2078,3710.5,3710.1,0.48523]
[1762176363966,15.21420453,3710.3,3710.1,0.48523]
[1762176364160,15.21420453,3710.2,3710.1,0.48778896]
[1762176366068,3.2078,3710.9,3710.8,0.48515]
[1762176366269,15.21420453,3711.6,3711.2,0.48509]
[1762176366474,3.2078,3711.3,3711.2,0.48509]
[1762176366773,30.26400453,3711.3,3711.2,0.48509]
[1762176367166,30.25500453,3711.3,3711.2,0.48509]
[1762176367367,18.42200453,3711.3,3711.2,0.48509]
[1762176367771,18.42200453,3711.3,3710.8,0.48515]
[1762176367974,15.21420453,3710.2,3708.3,12.13683]
[1762176368166,3.2078,3709.6,3708.0,4.42158]
[1762176368368,3.2078,3709.2,3709.1,0.48537]
[1762176368972,3.2078,3709.2,3709.1,0.48794363]
[1762176368973,0.00269856,3709.2,3709.1,0.48794363]
[1762176371270,3.2078,3710.1,3709.9,0.48526]
[1762176371580,15.21420453,3710.0,3709.9,0.48526]
[1762176372270,15.21644575,3710.0,3709.9,0.48526]
[1762176372466,1.2659,3709.8,3709.1,0.00257363]
[1762176372674,3.2078,3709.2,3709.1,0.00257363]
[1762176373076,18.42200453,3709.2,3709.1,0.00257363]
[1762176374873,3.2078,3709.2,3707.3,3.2078]
[1762176375175,3.2078,3708.0,3707.9,0.48553]
[1762176375467,3.2078,3708.0,3707.3,3.2078]
[1762176375468,3.2078,3708.0,3707.8,0.48554]
[1762176375668,18.42200453,3708.0,3707.8,0.48554]
[1762176375870,15.21420453,3707.9,3707.8,0.48875877]
[1762176376371,15.21420453,3707.9,3707.8,0.00321877]
[1762176376578,23.21420453,3707.9,3707.1,0.48563]
[1762176376871,3.2078,3707.2,3707.0,0.48564]
[1762176377380,16.48010453,3707.1,3706.9,0.48566]
[1762176377567,15.21420453,3707.0,3706.9,0.00267576]
[1762176378472,15.21420453,3707.0,3705.8,1.21449]
[1762176378473,23.21420453,3707.0,3706.0,0.48577]
[1762176378776,3.2078,3706.2,3706.0,0.48577]
[1762176379171,15.21420453,3706.1,3706.0,0.48577]
[1762176379372,15.21420453,3706.1,3705.4,3.16429]
[1762176379573,15.21420453,3705.9,3705.4,3.16661181]
[1762176379877,15.21420453,3705.5,3705.4,0.00232181]
[1762176380079,26.87620453,3705.5,3705.4,0.00232181]
[1762176380374,34.87620453,3705.5,3704.1,1.21507]
[1762176380571,3.2078,3704.9,3704.8,0.48592]
[1762176380974,18.42200453,3704.9,3704.8,0.48592]
[1762176381380,18.42200453,3704.9,3704.8,0.48934016]
[1762176381769,18.42200453,3704.9,3703.2,1.21535]
[1762176381975,3.2078,3704.1,3703.2,1.21535]
[1762176382174,3.2078,3704.1,3703.9,0.48605]
[1762176382571,15.21420453,3704.0,3703.8,0.48606]
[1762176382778,3.2078,3704.1,3703.8,0.00302951]
[1762176382981,15.21420453,3703.9,3703.8,0.00302951]
[1762176383678,0.0024037,3704.0,3703.9,0.48605]
[1762176383980,15.21660823,3704.0,3703.9,0.48605]
[1762176384577,0.0024037,3704.0,3703.9,0.48605]
[1762176384777,15.21660823,3704.0,3703.9,0.48605]
[1762176385281,0.0024037,3704.0,3703.9,0.48605]
[1762176390681,16.56080823,3704.0,3703.8,0.00302951]
[1762176390874,15.21420453,3703.9,3703.8,0.00302951]
[1762176391478,15.21420453,3703.9,3703.8,0.48909951]
[1762176391679,0.0024037,3704.0,3703.9,0.48605]
[1762176392078,15.21660823,3704.0,3703.9,0.48605]
[1762176392479,2.195,3703.9,3703.8,0.00302951]
[1762176392674,17.40920453,3703.9,3703.8,0.00302951]
[1762176393488,2.195,3703.3,3703.2,0.48615]
[1762176393782,5.4028,3703.3,3703.1,0.48615]
[1762176393982,15.21420453,3703.2,3703.1,0.48615]
[1762176394185,15.21420453,3703.2,3703.0,0.48617]
[1762176394385,15.21420453,3703.0,3702.9,0.48619]
[1762176394580,3.2078,3703.3,3703.2,0.48615]
[1762176394786,15.21420453,3703.1,3703.0,0.48616]
[1762176394985,15.21420453,3703.1,3703.0,0.48844471]
[1762176395179,17.40920453,3703.1,3703.0,0.00228471]
[1762176395385,17.40920453,3703.1,3703.0,0.48845471]
[1762176395585,17.40920453,3703.1,3703.0,0.00228471]
[1762176395883,17.40920453,3703.1,3703.0,0.70304057]
[1762176397187,17.40920453,3703.1,3703.0,1.18921057]
[1762176397384,17.40920453,3703.1,3703.0,0.70304057]
[1762176397590,15.21420453,3703.1,3703.0,1.18921057]
[1762176397794,15.21420453,3703.1,3703.0,0.70304057]
[1762176398091,17.40920453,3703.1,3703.0,0.70304057]
[1762176398480,17.40920453,3703.1,3703.0,1.18921057]
[1762176398986,15.21420453,3703.1,3703.0,1.18921057]
[1762176400486,15.21420453,3703.1,3703.0,0.70304057]
[1762176400788,15.21420453,3703.1,3703.0,1.18921057]
[1762176401184,17.40920453,3703.1,3703.0,1.18921057]
[1762176401494,17.40920453,3703.1,3703.0,2.61276496]
[1762176401689,17.40920453,3703.1,3703.0,1.18921057]
[1762176401892,17.40920453,3703.1,3703.0,0.70304057]
[1762176402290,17.40920453,3703.1,3703.0,1.18921057]
[1762176402595,17.40920453,3703.1,3703.0,0.70304057]
[1762176403596,15.95028288,3703.1,3703.0,0.70304057]
[1762176403797,13.76187914,3703.1,3703.0,1.18921057]
[1762176404091,11.56687914,3703.1,3703.0,1.18921057]
[1762176404287,10.8441842,3703.1,3703.0,0.70304057]
[1762176405789,10.8441842,3703.1,3703.0,4.057e-05]
[1762176406788,10.8441842,3703.1,3703.0,0.00341528]
[1762176406986,10.8441842,3703.1,3703.0,1.92954901]
[1762176407389,10.8441842,3703.1,3703.0,0.00341528]
[1762176409196,22.0761842,3703.1,3702.8,2.40053502]
[1762176409397,2.195,3702.4,3702.3,3.30805997]
[1762176409698,2.195,3702.4,3702.1,3.79433997]
[1762176409699,5.4028,3702.4,3702.1,3.79433997]
[1762176409896,8.6491842,3702.3,3702.1,3.79433997]
[1762176410598,8.6491842,3702.3,3702.2,0.48628]
[1762176411299,5.00143818,3702.3,3702.2,3.30805997]
[1762176411488,7.19643818,3702.3,3702.2,3.30805997]
[1762176412194,7.19643818,3702.3,3702.2,0.48628]
[1762176413798,5.00778146,3702.3,3702.2,0.48628]
[1762176414100,5.00778146,3702.3,3702.1,0.48629]
[1762176414298,2.81278146,3702.2,3702.1,0.48629]
[1762176414504,2.195,3702.3,3702.2,0.48627]
[1762176414804,2.195,3702.3,3702.2,2.9037715]
[1762176415001,4.552,3702.6,3702.1,2.4175015]
[1762176415198,4.552,3702.6,3702.5,2.79774]
[1762176415199,3.2078,3702.6,3702.5,2.79774]
[1762176415702,6.02058146,3702.6,3702.5,5.2152415]
[1762176415901,3.2078,3702.6,3702.5,2.79774]
[1762176416093,3.2078,3703.1,3702.9,0.48618]
[1762176416295,2.81278146,3703.0,3702.5,4.52365997]
[1762176416498,3.2078,3703.1,3703.0,0.48617]
[1762176416899,3.2078,3703.1,3703.0,2.79767]
[1762176417800,6.02058146,3703.1,3703.0,0.48617]
[1762176418599,6.02058146,3703.1,3703.0,0.48826718]
[1762176419503,3.2078,3703.1,3703.0,2.79976718]
[1762176421202,3.2078,3703.1,3703.0,3.5163921]
[1762176422200,6.02058146,3703.1,3703.0,1.2048921]
[1762176422400,3.2078,3703.1,3703.0,1.2048921]
[1762176423307,3.2078,3703.6,3703.5,0.48611]
[1762176423499,3.2078,3703.6,3703.5,1.20273492]
[1762176423800,3.83272116,3703.6,3703.5,1.20273492]
[1762176424005,3.2078,3704.7,3703.8,1.3418]
[1762176424208,3.2078,3704.8,3704.3,2.90875813]
[1762176424401,2.3797,3704.5,3704.4,0.71662492]
[1762176424606,3.2078,3704.8,3704.7,0.48595]
[1762176424806,5.5875,3704.8,3704.7,0.48595]
[1762176425008,8.40361398,3704.8,3704.7,0.48595]
[1762176425203,2.3797,3704.5,3704.2,2.90876813]
[1762176425401,2.81278146,3704.4,3704.3,0.486]
[1762176425607,3.21113252,3704.8,3704.6,0.48596]
[1762176425808,5.59083252,3704.8,3704.7,1.93539846]
[1762176426010,2.81611398,3704.8,3704.6,0.48596]
[1762176426203,2.81611398,3704.8,3704.7,2.3115]
[1762176426508,0.00333252,3704.8,3704.7,2.3115]
[1762176426903,0.00333252,3704.8,3704.7,4.24518202]
[1762176427304,0.00333252,3704.8,3704.7,2.3115]
[1762176427904,0.00333252,3704.8,3704.7,4.24518202]
[1762176428305,0.00333252,3704.8,3704.7,2.3115]
[1762176429415,2.3797,3704.5,3704.4,1.93368202]
[1762176429606,5.19248146,3704.5,3704.4,1.44789973]
[1762176429909,2.81278146,3704.5,3704.3,0.486]
[1762176430107,2.81278146,3704.6,3704.5,2.79746]
[1762176430312,3.21113252,3704.8,3704.6,0.48595]
[1762176430506,6.02391398,3704.8,3704.6,0.48595]
[1762176431013,6.02391398,3704.8,3704.7,0.48595]
[1762176431310,3.21113252,3704.8,3704.7,0.48595]
[1762176431505,6.02391398,3704.8,3704.7,0.48595]
[1762176431707,3.21113252,3704.8,3704.7,0.48595]
[1762176431908,3.21113252,3704.8,3704.7,2.79745]
[1762176432109,6.02391398,3704.8,3704.7,2.79745]
[1762176432502,3.21113252,3704.8,3704.7,2.79745]